bitfinex/quotes_SOLUSD_20250207
["timestamp","ask_amount","ask_price","bid_price","bid_amount"]
[1738955864489,81.3,197.54,197.47,15.3806208]
[1738955864660,5.0917,197.56,197.53,15.3806208]
[1738955864961,0.03,197.56,197.51,13.41184853]
[1738955865362,0.03,197.56,197.49,13.41184853]
[1738955865774,5.0918,197.56,197.48,4.0]
[1738955865984,15.3806208,197.55,197.48,19.3806208]
[1738955866796,15.3806208,197.54,197.48,4.0]
[1738955866963,5.0622,197.55,197.48,4.0]
[1738955866964,15.3806208,197.53,197.48,4.0]
[1738955868003,5.0627,197.52,197.48,4.0]
[1738955868304,0.03,197.56,197.48,4.0]
[1738955868305,15.3806208,197.54,197.48,4.0]
[1738955868467,20.4431208,197.54,197.48,4.0]
[1738955871078,15.3806208,197.54,197.48,19.3806208]
[1738955871394,0.03,197.56,197.52,15.3806208]
[1738955871771,0.03,197.56,197.53,15.3806208]
[1738955872779,0.03,197.56,197.52,15.3806208]
[1738955874999,0.03,197.56,197.51,20.4436208]
[1738955875701,0.03,197.56,197.52,15.3806208]
[1738955876676,0.03,197.56,197.52,45.3806208]
[1738955876882,0.03,197.56,197.53,15.3806208]
[1738955877076,0.03,197.56,197.52,50.4433208]
[1738955877400,0.03,197.56,197.52,20.4433208]
[1738955878310,15.4106208,197.56,197.5,20.4438208]
[1738955878817,15.3806208,197.55,197.49,28.79246933]
[1738955878985,15.3806208,197.54,197.47,24.4446208]
[1738955879186,15.3806208,197.53,197.47,24.4446208]
[1738955879815,15.3806208,197.53,197.47,19.3806208]
[1738955880010,15.3806208,197.52,197.47,4.0]
[1738955880684,15.3806208,197.53,197.47,4.0]
[1738955880890,20.4432208,197.53,197.47,4.0]
[1738955881483,15.3806208,197.52,197.46,22.0519208]
[1738955881912,20.4434208,197.52,197.46,22.0519208]
[1738955882414,20.4434208,197.52,197.46,0.063]
[1738955882591,15.3806208,197.5,197.46,0.063]
[1738955883327,5.0628,197.52,197.46,5.1271]
[1738955883328,20.4434208,197.52,197.46,5.1271]
[1738955883820,5.0625,197.53,197.47,15.3806208]
[1738955884111,5.0623,197.54,197.48,15.3806208]
[1738955884491,96.6806208,197.55,197.46,35.1271]
[1738955884699,86.362,197.55,197.49,15.3806208]
[1738955885119,101.7426208,197.55,197.49,15.3806208]
[1738955885403,101.7426208,197.55,197.48,15.3806208]
[1738955885609,15.3806208,197.52,197.46,15.4436208]
[1738955885813,15.3806208,197.53,197.47,13.41184853]
[1738955886007,20.4431208,197.53,197.46,15.4436208]
[1738955886214,15.3806208,197.51,197.46,0.063]
[1738955886401,15.3806208,197.5,197.46,0.063]
[1738955886601,15.3806208,197.5,197.48,0.063]
[1738955887198,15.3806208,197.49,197.48,0.063]
[1738955887987,20.4441208,197.49,197.48,0.063]
[1738955888896,20.6951008,197.49,197.48,0.063]
[1738955891213,20.0,197.47,197.46,0.063]
[1738955891517,35.3806208,197.47,197.46,0.063]
[1738955892014,35.3806208,197.47,197.44,0.0001]
[1738955892015,0.25098,197.46,197.44,0.0001]
[1738955892197,15.3806208,197.45,197.44,0.0001]
[1738955892815,81.3,197.48,197.44,0.0001]
[1738955893026,5.0627,197.52,197.44,0.0001]
[1738955893316,5.0627,197.52,197.44,18.47674853]
[1738955893513,20.4433208,197.52,197.45,15.3806208]
[1738955894531,15.3806208,197.5,197.44,0.0001]
[1738955894817,15.3806208,197.49,197.44,0.0001]
[1738955894999,15.3806208,197.48,197.44,0.0001]
[1738955895200,15.3806208,197.5,197.44,15.3807208]
[1738955895395,81.3,197.53,197.47,15.3806208]
[1738955895632,15.3806208,197.54,197.47,15.3806208]
[1738955895633,5.0622,197.54,197.49,15.3806208]
[1738955895799,20.4723208,197.56,197.49,15.3806208]
[1738955896117,0.03,197.56,197.5,44.97844853]
[1738955896322,5.0917,197.56,197.5,14.97844853]
[1738955896700,20.4723208,197.56,197.5,14.97844853]
[1738955897028,5.0917,197.56,197.5,60.35906933]
[1738955897213,20.4723208,197.56,197.5,14.97844853]
[1738955897907,15.3806208,197.54,197.5,1.5666]
[1738955898216,5.0917,197.56,197.45,17.0423208]
[1738955898397,15.3806208,197.51,197.45,329.0423208]
[1738955898817,15.3806208,197.51,197.47,0.063]
[1738955899021,15.3806208,197.49,197.47,0.063]
[1738955899259,20.4441208,197.49,197.47,0.063]
[1738955899527,15.3806208,197.48,197.47,0.063]
[1738955901311,20.4444208,197.48,197.47,0.063]
[1738955902509,20.4441208,197.49,197.47,0.063]
[1738955903209,15.3806208,197.52,197.47,0.063]
[1738955903507,5.0625,197.53,197.47,0.063]
[1738955903720,15.3806208,197.51,197.47,0.063]
[1738955904222,15.3806208,197.5,197.47,0.063]
[1738955904428,101.7430208,197.54,197.47,15.4436208]
[1738955904638,15.3806208,197.55,197.49,30.0]
[1738955904929,0.03,197.56,197.51,15.3806208]
[1738955905143,5.0918,197.56,197.5,28.79246933]
[1738955906341,20.4724208,197.56,197.49,327.3806208]
[1738955906647,15.3806208,197.53,197.48,6.5121]
[1738955907534,15.3806208,197.52,197.48,6.5121]
[1738955908315,20.4432208,197.53,197.48,6.5121]
[1738955909537,5.0626,197.53,197.48,6.5121]
[1738955910430,15.3806208,197.53,197.48,6.5121]
[1738955910624,15.3806208,197.52,197.48,6.5121]
[1738955910932,15.3806208,197.51,197.47,0.063]
[1738955911116,15.3806208,197.5,197.47,0.063]
[1738955911315,15.3806208,197.49,197.47,0.063]
[1738955911831,15.3806208,197.5,197.47,0.063]
[1738955912038,15.3806208,197.51,197.47,0.063]
[1738955912736,15.3806208,197.48,197.47,0.063]
[1738955914443,15.6316008,197.48,197.46,0.063]
[1738955914637,35.3806208,197.47,197.46,0.063]
[1738955914838,40.4446208,197.47,197.46,0.063]
[1738955915016,40.6956008,197.47,197.46,0.063]
[1738955915554,40.6956008,197.47,197.44,0.0001]
[1738955915555,0.25098,197.46,197.44,0.0001]
[1738955915735,15.6316008,197.45,197.44,0.0001]
[1738955916744,49.95863422,197.45,197.44,0.0001]
[1738955917320,49.95863422,197.45,197.4,0.063]
[1738955917321,0.25098,197.44,197.4,0.063]
[1738955917517,24.64315422,197.41,197.4,0.063]
[1738955917724,49.28630844,197.41,197.4,0.063]
[1738955917933,49.53728844,197.41,197.4,0.063]
[1738955919444,49.53728844,197.41,197.29,0.063]
[1738955919445,0.25098,197.36,197.29,0.063]
[1738955919647,24.64315422,197.31,197.29,0.063]
[1738955919842,105.94315422,197.35,197.29,0.063]
[1738955920531,24.64315422,197.34,197.29,0.063]
[1738955920731,24.64315422,197.33,197.29,0.063]
[1738955921339,24.64315422,197.32,197.29,0.063]
[1738955922427,24.64315422,197.31,197.29,0.063]
[1738955922628,24.64315422,197.3,197.29,0.063]
[1738955923322,29.71155422,197.3,197.29,0.063]
[1738955927549,20.25098,197.28,197.27,0.063]
[1738955927753,0.25098,197.27,197.17,6.443]
[1738955927925,24.64315422,197.2,197.17,6.443]
[1738955928447,0.25098,197.27,197.16,1.64]
[1738955928646,29.71445422,197.19,197.16,1.64]
[1738955928845,5.0713,197.19,197.16,1.64]
[1738955929339,29.71445422,197.19,197.12,49.19850275]
[1738955929542,24.64315422,197.16,197.12,6.0705]
[1738955929739,24.64315422,197.14,197.09,0.063]
[1738955930736,29.71565422,197.14,197.09,0.063]
[1738955932146,29.71535422,197.16,197.09,24.70615422]
[1738955932446,5.0722,197.16,197.11,24.64315422]
[1738955932827,24.64315422,197.15,197.09,24.70615422]
[1738955933146,24.64315422,197.1,197.09,0.063]
[1738955934231,29.71665422,197.1,197.09,0.063]
[1738955934548,24.64315422,197.1,197.09,0.063]
[1738955935658,24.64315422,197.11,197.09,0.063]
[1738955936161,24.64315422,197.13,197.09,0.063]
[1738955936347,24.64315422,197.14,197.09,0.063]
[1738955936652,12.6781,197.19,197.11,15.43465276]
[1738955936653,5.0712,197.19,197.11,15.43465276]
[1738955936839,15.43465276,197.18,197.12,13.41184853]
[1738955937523,15.43465276,197.17,197.12,13.41184853]
[1738955937729,15.43465276,197.15,197.09,7.7972]
[1738955937924,15.43465276,197.15,197.09,26.28284853]
[1738955938236,15.43465276,197.12,197.09,7.7972]
[1738955938547,15.43465276,197.14,197.09,6.2629]
[1738955938858,24.70671897,197.14,197.09,19.67474853]
[1738955939231,24.70671897,197.15,197.09,19.67474853]
[1738955939429,5.072,197.16,197.09,19.67474853]
[1738955939430,24.70671897,197.14,197.09,19.67474853]
[1738955940832,24.70671897,197.12,197.09,6.2629]
[1738955941034,24.70671897,197.12,197.09,0.063]
[1738955941761,5.0726,197.14,197.09,0.063]
[1738955941762,24.70671897,197.11,197.09,0.063]
[1738955941936,24.70671897,197.1,197.09,0.063]
[1738955942338,30.03119897,197.1,197.09,0.063]
[1738955942538,29.78021897,197.1,197.09,0.063]
[1738955942730,24.70671897,197.1,197.09,0.063]
[1738955942930,24.70671897,197.13,197.09,0.063]
[1738955943147,24.70671897,197.12,197.09,0.063]
[1738955944533,24.70671897,197.11,197.09,0.063]
[1738955944738,24.70671897,197.1,197.09,0.063]
[1738955944936,29.77981897,197.12,197.09,0.063]
[1738955945356,24.70671897,197.11,197.09,0.063]
[1738955946435,29.78011897,197.11,197.09,0.063]
[1738955947451,24.70671897,197.12,197.09,0.063]
[1738955947763,24.70671897,197.13,197.09,0.063]
[1738955948541,5.0715,197.18,197.12,24.70671897]
[1738955948763,106.00671897,197.21,197.15,24.70671897]
[1738955948947,81.3,197.21,197.15,24.70671897]
[1738955949146,86.3707,197.21,197.15,24.70671897]
[1738955949850,81.3,197.21,197.16,24.70671897]
[1738955950047,5.0704,197.23,197.17,24.70671897]
[1738955950452,24.70671897,197.24,197.17,24.70671897]
[1738955950682,29.77661897,197.24,197.17,24.70671897]
[1738955951177,29.77661897,197.24,197.17,29.77821897]
[1738955951362,29.77661897,197.24,197.17,24.70671897]
[1738955951963,5.0699,197.24,197.18,24.70671897]
[1738955952150,81.3,197.26,197.22,24.70671897]
[1738955952341,86.3695,197.26,197.2,26.23081897]
[1738955952548,86.3695,197.26,197.15,31.5082]
[1738955952783,20.0,197.23,197.15,1.5082]
[1738955953082,20.25098,197.22,197.13,6.1223]
[1738955953565,20.0,197.22,197.13,6.1223]
[1738955953763,24.70671897,197.2,197.13,35.90171897]
[1738955953949,24.70671897,197.22,197.16,24.70671897]
[1738955954351,24.70671897,197.22,197.15,24.70671897]
[1738955954563,5.0707,197.21,197.15,24.70671897]
[1738955955466,29.77741897,197.21,197.15,312.0]
[1738955956273,29.77741897,197.21,197.14,24.70671897]
[1738955956460,24.70671897,197.18,197.13,6.1223]
[1738955956871,29.77741897,197.21,197.14,38.1185675]
[1738955957388,24.70671897,197.18,197.13,6.1223]
[1738955957887,24.70671897,197.17,197.13,6.1223]
[1738955958381,5.072,197.16,197.13,6.1223]
[1738955958586,12.6768,197.21,197.13,6.1223]
[1738955958587,5.0717,197.18,197.13,6.1223]
[1738955959263,20.50401344,197.18,197.13,6.1223]
[1738955959461,15.43231344,197.14,197.09,0.063]
[1738955959660,15.43231344,197.13,197.09,0.063]
[1738955960452,5.073,197.13,197.09,0.063]
[1738955960653,5.072,197.16,197.1,24.69933911]
[1738955960955,81.3,197.17,197.13,24.69933911]
[1738955961154,5.0717,197.18,197.13,24.69933911]
[1738955961369,5.0711,197.2,197.15,24.69933911]
[1738955961570,5.0711,197.2,197.14,38.11118764]
[1738955961758,29.77043911,197.2,197.14,13.41184853]
[1738955961962,5.0707,197.21,197.15,24.69933911]
[1738955962475,24.69933911,197.23,197.16,38.11118764]
[1738955962683,24.69933911,197.24,197.17,24.69933911]
[1738955962883,24.69933911,197.25,197.18,24.69933911]
[1738955963269,29.76873911,197.26,197.19,24.69933911]
[1738955963586,86.3992,197.27,197.21,24.69933911]
[1738955963761,0.03,197.27,197.22,24.69933911]
[1738955964082,5.0992,197.27,197.21,38.11118764]
[1738955964493,0.03,197.27,197.22,24.69933911]
[1738955964963,0.03,197.27,197.22,31.32973911]
[1738955965469,0.03,197.27,197.22,6.6304]
[1738955966485,0.03,197.27,197.23,13.41184853]
[1738955966660,0.03,197.27,197.24,24.69933911]
[1738955966859,0.03,197.27,197.25,13.41184853]
[1738955967059,0.03,197.27,197.26,38.11118764]
[1738955967282,0.03,197.27,197.26,13.41184853]
[1738955967467,0.03,197.27,197.24,1.613]
[1738955967781,24.69933911,197.26,197.22,6.6304]
[1738955967986,24.69933911,197.25,197.22,6.6304]
[1738955968376,29.79873911,197.27,197.22,6.6304]
[1738955968867,24.69933911,197.26,197.19,26.28363911]
[1738955969081,24.69933911,197.23,197.19,1.5843]
[1738955969282,24.69933911,197.21,197.17,6.2253]
[1738955970068,24.69933911,197.22,197.17,6.2253]
[1738955970388,24.69933911,197.24,197.18,13.41184853]
[1738955970592,24.69933911,197.23,197.18,13.41184853]
[1738955970970,24.69933911,197.24,197.18,13.41184853]
[1738955972077,29.76873911,197.26,197.18,43.18258764]
[1738955972277,29.76873911,197.26,197.19,24.69933911]
[1738955972767,24.69933911,197.21,197.17,6.2253]
[1738955973389,24.69933911,197.22,197.17,6.2253]
[1738955973908,24.69933911,197.19,197.15,0.063]
[1738955974105,24.69933911,197.2,197.15,0.063]
[1738955974591,24.69933911,197.21,197.15,0.063]
[1738955974975,5.0709,197.2,197.15,0.063]
[1738955976281,24.69933911,197.2,197.15,0.063]
[1738955977399,24.69933911,197.21,197.15,0.063]
[1738955977800,24.69933911,197.19,197.15,0.063]
[1738955978005,24.69933911,197.2,197.15,0.063]
[1738955978381,24.69933911,197.21,197.15,0.063]
[1738955978782,24.69933911,197.22,197.15,68.17418764]
[1738955979200,24.69933911,197.2,197.15,0.063]
[1738955979505,5.0712,197.19,197.15,0.063]
[1738955980404,24.69933911,197.21,197.15,0.063]
[1738955980599,5.0709,197.2,197.15,0.063]
[1738955980986,15.43015764,197.16,197.15,0.063]
[1738955982398,20.50215764,197.16,197.15,0.063]
[1738955986292,20.75313764,197.16,197.15,0.063]
[1738955986504,20.75313764,197.16,197.15,0.0001]
[1738955988112,36.66768617,197.16,197.15,0.0001]
[1738955988308,35.66768617,197.16,197.15,0.0001]
[1738955988789,22.25583764,197.16,197.15,0.0001]
[1738955989188,20.50215764,197.16,197.15,0.0001]
[1738955990606,20.50185764,197.17,197.15,0.0001]
[1738955990788,5.0717,197.17,197.15,0.0001]
[1738955991296,15.43015764,197.19,197.15,0.0001]
[1738955991607,20.50145764,197.19,197.15,0.0001]
[1738955991910,15.43015764,197.22,197.16,15.43015764]
[1738955992212,20.50075764,197.22,197.16,15.43015764]
[1738955992393,15.43015764,197.21,197.15,0.0001]
[1738955992589,24.68613541,197.21,197.15,0.0001]
[1738955992789,29.75673541,197.22,197.15,24.68623541]
[1738955994516,24.68613541,197.19,197.15,0.0001]
[1738955994807,24.68613541,197.16,197.15,0.0001]
[1738955995992,0.25098,197.21,197.15,0.0001]
[1738955995993,24.68613541,197.17,197.15,0.0001]
[1738955996413,29.75793541,197.17,197.15,0.0001]
[1738955997289,29.75763541,197.18,197.15,0.0001]
[1738955998619,24.68613541,197.19,197.15,0.0001]
[1738955998821,29.75683541,197.21,197.15,13.41194853]
[1738955999027,5.0707,197.21,197.15,38.09808394]
[1738955999392,24.68613541,197.2,197.15,0.0001]
[1738956000822,24.68613541,197.17,197.15,0.0001]
[1738956001026,24.68613541,197.16,197.15,0.0001]
[1738956002732,29.75813541,197.16,197.15,0.0001]
[1738956005411,24.71613541,197.21,197.15,0.0001]
[1738956005624,0.03,197.21,197.17,24.68613541]
[1738956005938,0.03,197.21,197.19,24.68613541]
[1738956006607,0.03,197.21,197.2,24.68613541]
[1738956006806,0.03,197.21,197.2,45.74698394]
[1738956008731,0.03,197.21,197.2,7.649]
[1738956009628,0.03,197.21,197.2,75.74698394]
[1738956010718,0.03,197.21,197.2,45.74698394]
[1738956010921,0.03,197.21,197.2,32.33513541]
[1738956011118,0.03,197.21,197.2,7.649]
[1738956011431,0.03,197.21,197.2,37.649]
[1738956012005,0.03,197.21,197.2,81.06084853]
[1738956012311,0.03,197.27,197.24,30.0]
[1738956012508,0.03,197.27,197.26,24.68613541]
[1738956012711,0.03,197.27,197.26,28.82181528]
[1738956013008,0.03,197.27,197.26,63.89121528]
[1738956013236,0.03,197.27,197.26,71.99641528]
[1738956013635,0.03,197.27,197.26,101.99641528]
[1738956014836,0.03,197.27,197.26,393.23986616]
[1738956015034,0.03,197.27,197.26,388.17046616]
[1738956015516,0.03,197.27,197.26,76.17046616]
[1738956015719,0.03,197.27,197.26,111.23986616]
[1738956016755,0.03,197.27,197.26,111.49084616]
[1738956017036,0.03,197.3,197.29,68.06526616]
[1738956017224,0.03,197.3,197.29,98.82524745]
[1738956017542,0.03,197.3,197.29,43.41184853]
[1738956017926,0.03,197.3,197.29,68.06526616]
[1738956018336,0.03,197.3,197.29,98.06526616]
[1738956018527,0.03,197.3,197.29,410.06526616]
[1738956019233,0.03,197.3,197.29,415.13386616]
[1738956020231,0.03,197.3,197.29,104.38484616]
[1738956020442,0.03,197.37,197.35,31.5417]
[1738956020734,0.03,197.37,197.36,44.23326616]
[1738956021136,0.03,197.37,197.36,49.30006616]
[1738956021529,0.03,197.37,197.36,79.30006616]
[1738956022323,0.03,197.41,197.39,30.0]
[1738956022525,0.03,197.41,197.4,38.06526616]
[1738956023230,0.03,197.41,197.4,350.06526616]
[1738956023746,0.03,197.41,197.4,355.41184853]
[1738956024148,0.03,197.41,197.4,43.41184853]
[1738956025233,0.03,197.41,197.4,13.41184853]
[1738956026857,0.03,197.41,197.4,43.41184853]
[1738956027343,0.03,197.41,197.4,13.41184853]
[1738956028846,24.68341763,197.41,197.36,6.168]
[1738956029046,24.65341763,197.4,197.36,6.168]
[1738956029233,0.03,197.41,197.38,13.41184853]
[1738956031122,24.65341763,197.4,197.36,6.168]
[1738956031328,24.65341763,197.37,197.32,30.0]
[1738956031528,24.65341763,197.35,197.31,6.3255]
[1738956031946,24.65341763,197.36,197.31,6.3255]
[1738956032454,24.65341763,197.35,197.31,6.3255]
[1738956032963,24.65341763,197.32,197.3,1.5668]
[1738956033136,24.65341763,197.32,197.27,4.04]
[1738956033334,24.65341763,197.32,197.27,13.41184853]
[1738956033535,24.65341763,197.31,197.27,13.41184853]
[1738956033735,24.65341763,197.3,197.27,13.41184853]
[1738956034134,24.65341763,197.3,197.26,6.3885]
[1738956034373,24.65341763,197.29,197.26,0.063]
[1738956035952,29.72181763,197.3,197.26,0.063]
[1738956036154,24.65341763,197.31,197.26,0.063]
[1738956036334,29.72151763,197.31,197.26,0.063]
[1738956036751,20.48072482,197.31,197.26,0.063]
[1738956037253,15.41262482,197.35,197.28,45.41262482]
[1738956037554,5.0668,197.36,197.3,15.41262482]
[1738956037945,20.47942482,197.36,197.29,28.82447335]
[1738956038145,15.41262482,197.33,197.28,312.0]
[1738956038347,15.41262482,197.33,197.26,15.47562482]
[1738956038348,15.41262482,197.32,197.26,0.063]
[1738956038742,15.41262482,197.29,197.26,0.063]
[1738956040359,15.41262482,197.32,197.26,43.47484853]
[1738956040660,15.41262482,197.32,197.26,48.54424853]
[1738956040661,24.65808622,197.32,197.26,48.54424853]
[1738956040853,24.65808622,197.32,197.26,18.54424853]
[1738956041046,24.65808622,197.35,197.29,13.41184853]
[1738956041244,93.9624,197.44,197.32,30.0]
[1738956041572,29.72338622,197.43,197.36,38.06993475]
[1738956042265,24.65808622,197.43,197.36,38.06993475]
[1738956042446,24.65808622,197.43,197.37,24.65808622]
[1738956042756,24.65808622,197.45,197.39,24.65808622]
[1738956043551,29.75228622,197.47,197.4,68.06993475]
[1738956045569,24.65808622,197.46,197.4,355.41184853]
[1738956045988,24.65808622,197.45,197.4,355.41184853]
[1738956046652,24.65808622,197.46,197.4,355.41184853]
[1738956047179,24.68808622,197.47,197.42,30.0]
[1738956047472,0.03,197.47,197.43,38.06993475]
[1738956048454,0.03,197.46,197.43,13.41184853]
[1738956049581,24.68808622,197.46,197.4,35.0656]
[1738956049891,24.68808622,197.46,197.41,13.41184853]
[1738956050385,24.68808622,197.46,197.39,30.86908622]
[1738956050386,24.65808622,197.45,197.39,6.211]
[1738956050677,0.03,197.46,197.42,13.41184853]
[1738956051075,0.03,197.46,197.42,38.06993475]
[1738956051261,0.03,197.46,197.42,43.13513475]
[1738956051584,0.03,197.46,197.45,13.41184853]
[1738956055359,0.03,197.46,197.45,43.13443475]
[1738956057359,0.03,197.46,197.45,13.41184853]
[1738956057562,0.03,197.46,197.42,35.0653]
[1738956057776,0.03,197.46,197.43,13.41184853]
[1738956058083,0.03,197.46,197.43,38.06993475]
[1738956058679,0.03,197.46,197.45,54.65808622]
[1738956059062,0.03,197.46,197.45,30.0]
[1738956059371,0.03,197.46,197.45,68.06993475]
[1738956059558,0.03,197.46,197.45,73.13443475]
[1738956060459,0.03,197.46,197.45,385.13443475]
[1738956060875,0.03,197.46,197.45,387.04891475]
[1738956061077,0.03,197.46,197.45,394.31021475]
[1738956061373,0.03,197.46,197.45,395.31021475]
[1738956061558,0.03,197.46,197.45,83.31021475]
[1738956061760,0.03,197.46,197.45,84.06950793]
[1738956061962,0.03,197.46,197.45,83.06950793]
[1738956062162,0.03,197.46,197.45,82.06950793]
[1738956062558,0.03,197.46,197.45,57.16044171]
[1738956062781,0.03,197.46,197.45,56.40114853]
[1738956062985,0.03,197.46,197.45,71.7807364]
[1738956064477,0.03,197.46,197.45,383.7807364]
[1738956064674,0.03,197.46,197.45,384.0317164]
[1738956065075,0.03,197.46,197.45,385.0317164]
[1738956065387,0.03,197.46,197.45,384.0317164]
[1738956065587,0.03,197.46,197.45,72.0317164]
[1738956065775,0.03,197.46,197.45,72.7910484]
[1738956065985,0.03,197.46,197.45,73.7910484]
[1738956066290,0.03,197.5,197.49,30.0]
[1738956066482,0.03,197.5,197.49,59.55066355]
[1738956066783,0.03,197.5,197.49,43.41184853]
[1738956066986,0.03,197.5,197.49,13.41184853]
[1738956067370,15.40958787,197.5,197.49,13.41184853]
[1738956067565,15.40958787,197.5,197.47,30.0]
[1738956067765,15.40958787,197.5,197.45,12.9893]
[1738956067984,15.40958787,197.5,197.46,13.41184853]
[1738956068475,15.37958787,197.49,197.46,13.41184853]
[1738956068676,15.37958787,197.48,197.46,13.41184853]
[1738956069066,15.37958787,197.49,197.46,13.41184853]
[1738956070474,15.37958787,197.47,197.42,30.0]
[1738956070692,15.37958787,197.45,197.41,9.0655]
[1738956070988,15.37958787,197.47,197.42,43.41184853]
[1738956071372,15.37958787,197.47,197.42,13.41184853]
[1738956071573,15.37958787,197.47,197.42,43.41184853]
[1738956071774,20.47298787,197.5,197.45,13.41184853]
[1738956071983,0.03,197.5,197.46,30.0]
[1738956072189,0.03,197.5,197.47,13.41184853]
[1738956072492,0.03,197.5,197.49,13.41184853]
[1738956072707,0.03,197.5,197.49,28.7914364]
[1738956073001,0.03,197.5,197.49,29.55067422]
[1738956073299,0.03,197.5,197.49,28.7914364]
[1738956073886,0.03,197.5,197.49,33.8549364]
[1738956075303,0.03,197.5,197.49,345.8549364]
[1738956075479,0.03,197.5,197.49,353.9640264]
[1738956075785,0.03,197.5,197.49,41.9640264]
[1738956076100,0.03,197.5,197.49,43.84869814]
[1738956076305,0.03,197.5,197.49,44.84869814]
[1738956077100,0.03,197.5,197.49,43.84869814]
[1738956077774,0.03,197.5,197.49,44.84869814]
[1738956077982,0.03,197.5,197.49,43.84869814]
[1738956078193,0.03,197.5,197.49,42.84869814]
[1738956078509,0.03,197.5,197.49,42.72320814]
[1738956078682,0.03,197.5,197.49,41.8385364]
[1738956078882,0.03,197.5,197.49,353.8385364]
[1738956080798,0.03,197.5,197.49,353.9640264]
[1738956081784,0.03,197.5,197.49,13.41184853]
[1738956082285,0.03,197.5,197.46,30.0]
[1738956082993,15.40958787,197.5,197.45,3.98]
[1738956083201,15.37958787,197.47,197.43,5.128]
[1738956083402,15.37958787,197.46,197.43,0.063]
[1738956084714,15.37958787,197.45,197.43,312.063]
[1738956085011,15.37958787,197.46,197.43,0.063]
[1738956085502,15.37958787,197.47,197.43,0.063]
[1738956085900,15.40958787,197.5,197.43,0.063]
[1738956086106,15.37958787,197.44,197.43,0.063]
[1738956086991,15.37958787,197.45,197.43,0.063]
[1738956088087,15.37958787,197.46,197.43,0.063]
[1738956088286,15.37958787,197.47,197.43,0.063]
[1738956088701,15.37958787,197.44,197.43,0.063]
[1738956092139,20.44438787,197.44,197.43,0.063]
[1738956094133,20.69536787,197.44,197.43,0.063]
[1738956095002,20.44438787,197.44,197.43,0.063]
[1738956095202,0.03,197.5,197.43,15.44258787]
[1738956095403,0.03,197.5,197.44,43.41184853]
[1738956095907,0.03,197.5,197.46,30.0]
[1738956096313,0.03,197.5,197.46,45.37958787]
[1738956096630,0.03,197.5,197.47,15.37958787]
[1738956096819,0.03,197.5,197.46,50.44378787]
[1738956097010,0.03,197.5,197.44,13.41184853]
[1738956097011,0.03,197.5,197.45,15.37958787]
[1738956097209,15.40958787,197.5,197.44,13.41184853]
[1738956097406,15.40958787,197.5,197.43,4.063]
[1738956097407,15.37958787,197.47,197.43,4.063]
[1738956097633,15.37958787,197.46,197.43,0.063]
[1738956097829,15.37958787,197.47,197.43,0.063]
[1738956098534,20.44348787,197.48,197.43,0.063]
[1738956098718,20.44348787,197.48,197.43,312.063]
[1738956099036,5.0639,197.48,197.43,312.063]
[1738956099435,15.37958787,197.45,197.43,0.063]
[1738956099734,15.37958787,197.44,197.43,0.063]
[1738956100622,24.62765615,197.44,197.43,0.063]
[1738956101013,24.62765615,197.45,197.43,0.063]
[1738956101837,29.69225615,197.45,197.43,0.063]
[1738956102212,106.17863615,197.44,197.43,0.063]
[1738956102528,20.25098,197.41,197.37,0.063]
[1738956102732,24.87863615,197.38,197.37,0.063]
[1738956102915,24.62765615,197.38,197.37,0.063]
[1738956103316,24.62765615,197.38,197.27,7.57642597]
[1738956103317,24.87863615,197.38,197.27,7.57642597]
[1738956103515,24.62765615,197.3,197.27,7.57642597]
[1738956103731,24.62765615,197.31,197.27,7.57642597]
[1738956104339,24.62765615,197.3,197.27,7.57642597]
[1738956104515,5.0681,197.31,197.27,7.57642597]
[1738956104516,24.62765615,197.28,197.27,7.57642597]
[1738956104943,24.62765615,197.28,197.26,0.063]
[1738956105120,24.62765615,197.27,197.26,0.063]
[1738956106332,29.69675615,197.27,197.26,0.063]